fUSD/lending_fUSD_20260314
["ID","MTS","AMOUNT","RATE_DAILY","PERIOD"]
[408361072,1773491479717,-566.74,0.00049479,2]
[408361073,1773491479727,-566.74,0.00049479,2]
[408361074,1773491479736,-566.74,0.00049479,2]
[408361075,1773491479747,-566.74,0.00049479,2]
[408361076,1773491479757,-566.74,0.00049479,2]
[408361077,1773491479767,-566.74,0.00049479,2]
[408361078,1773491479777,-320.8548563,0.00049479,120]
[408361079,1773491479787,-566.74,0.00049479,2]
[408361080,1773491479798,-566.74,0.00049479,2]
[408361081,1773491479808,-271.07407616,0.00049479,120]
[408361082,1773491479818,-566.74,0.00049479,2]
[408361083,1773491479827,-566.74,0.00049479,2]
[408361084,1773491479837,-189.56629163,0.00049479,120]
[408361085,1773491479847,-230.24619065,0.00049479,120]
[408361086,1773491479856,-566.74,0.00049479,2]
[408361087,1773491479866,-566.74,0.00049479,2]
[408361088,1773491479876,-566.74,0.00049479,2]
[408361089,1773491479884,-566.74,0.00049479,2]
[408361090,1773491479894,-566.74,0.00049479,2]
[408361091,1773491479903,-566.74,0.00049479,2]
[408361092,1773491479912,-169.094819,0.00049479,120]
[408361093,1773491479923,-566.74,0.00049479,2]
[408361094,1773491479933,-151.0,0.00049479,120]
[408361095,1773491479942,-566.74,0.00049479,2]
[408361096,1773491479951,-566.74,0.00049479,2]
[408361097,1773491479960,-566.74,0.00049479,2]
[408361098,1773491479969,-566.74,0.00049479,2]
[408361099,1773491479983,-407.71844269,0.00049479,120]
[408361100,1773491479993,-566.74,0.00049479,2]
[408361101,1773491480003,-169.094819,0.00049479,120]
[408361102,1773491480012,-169.36570666,0.00049479,120]
[408361103,1773491480021,-566.74,0.00049479,2]
[408361104,1773491480129,-566.76395629,0.00049479,2]
[408361105,1773491480142,-292.40915103,0.00049479,120]
[408361106,1773491480152,-195.41749311,0.00049479,120]
[408361107,1773491480161,-169.094819,0.00049479,120]
[408361108,1773491480170,-497.59210052,0.00049479,2]
[408361109,1773491480180,-169.094819,0.00049479,120]
[408361110,1773491480189,-151.0,0.00049479,120]
[408361111,1773491480199,-175.12974326,0.00049479,120]
[408361112,1773491480209,-151.304545,0.00049479,120]
[408361113,1773491480218,-500.0,0.00049479,120]
[408361114,1773491480228,-151.0,0.00049479,120]
[408361115,1773491480237,-379.47394984,0.00049479,120]
[408361116,1773491480246,-173.94603478,0.00049479,120]
[408361117,1773491480256,-285.68476368,0.00049479,120]
[408361118,1773491480265,-15761.11889526,0.00049486,120]
[408361119,1773491480274,-50000.0,0.00049499,57]
[408361120,1773491480284,-50000.0,0.00049499,67]
[408361121,1773491480293,-50000.0,0.00049499,64]
[408361122,1773491480303,-150.0,0.00049499,2]
[408361123,1773491480313,-70083.93,0.00049499,120]
[408361124,1773491480322,-291.6385641,0.00049499,30]
[408361125,1773491480332,-272.54774281,0.00049499,30]
[408361126,1773491480348,-150.21355385,0.00049499,30]
[408361127,1773491480361,-167.84087661,0.00049499,30]
[408361128,1773491480371,-150.27512652,0.00049499,30]
[408361129,1773491480381,-235.13967048,0.00049499,30]
[408361130,1773491480392,-322.1011925,0.00049499,30]
[408361131,1773491480402,-243.08085958,0.00049499,30]
[408361132,1773491480420,-280.60170574,0.00049499,30]
[408361133,1773491480432,-169.38985709,0.00049499,30]
[408361134,1773491480442,-285.17003271,0.00049499,30]
[408361135,1773491480451,-188.70466037,0.00049499,30]
[408361136,1773491480461,-202.78290846,0.00049499,30]
[408361137,1773491480470,-246.82993791,0.00049499,30]
[408361138,1773491480480,-266.3670539,0.00049499,30]
[408361139,1773491480491,-150.0,0.00049499,2]
[408361140,1773491480500,-155.74,0.00049499,120]
[408361141,1773491480510,-235.24319917,0.00049499,45]
[408361142,1773491480519,-1000.0,0.00049499,120]
[408361143,1773491480529,-50000.0,0.000495,69]
[408361144,1773491480538,-50000.0,0.000495,66]
[408361145,1773491480548,-50000.0,0.000495,62]
[408361146,1773491480558,-50000.0,0.000495,58]
[408361147,1773491480567,-50000.0,0.000495,56]
[408361148,1773491480577,-54497.81729479,0.000495,45]
[408361149,1773491480587,-1000.0,0.000495,120]
[408361150,1773491480596,-3677660.86532179,0.000495,120]
[408361151,1773491480606,-21508.9881492,0.000495,90]
[408361152,1773491480615,-263.51453187,0.000495,120]
[408361153,1773491480624,-264.28730506,0.000495,120]
[408361154,1773491480633,-100000.0,0.000495,32]
[408361155,1773491480642,-18990.24,0.000495,120]
[408361156,1773491480652,-264.7386834,0.000495,120]
[408361157,1773491480662,-5052.37547901,0.000495,120]
[408361158,1773491480671,-5000000.0,0.000495,120]
[408361159,1773491480680,-5000000.0,0.000495,120]
[408361160,1773491480690,-5000000.0,0.000495,120]
[408361161,1773491480699,-5000000.0,0.000495,120]
[408361162,1773491480709,-5000000.0,0.000495,120]
[408361163,1773491480719,-5000000.0,0.000495,120]
[408361164,1773491480728,-15099.26833117,0.000495,120]
[408361165,1773491480737,-5852.38192832,0.000495,30]
[408361166,1773491480757,-5852.38192832,0.000495,30]
[408361167,1773491480767,-430.33564595,0.000495,30]
[408361168,1773491480777,-152.41979,0.000495,120]
[408361169,1773491480787,-152.41979,0.000495,120]
[408361170,1773491480798,-152.41979,0.000495,120]
[408361171,1773491480807,-152.41979,0.000495,120]
[408361172,1773491480817,-152.41979,0.000495,120]
[408361173,1773491480826,-152.41979,0.000495,120]
[408361174,1773491480836,-152.41979,0.000495,120]
[408361175,1773491480848,-152.419788,0.000495,120]
[408361176,1773491480859,-5627.9305,0.000495,2]
[408361177,1773491480869,-266.513768,0.000495,31]
[408361178,1773491480879,-151.0,0.000495,2]
[408361179,1773491480889,-151.0,0.000495,2]
[408361180,1773491480899,-151.0,0.000495,2]
[408361181,1773491480908,-151.0,0.000495,2]
[408361182,1773491480920,-151.0,0.000495,120]
[408361183,1773491480930,-151.0,0.000495,120]
[408361184,1773491480939,-151.0,0.000495,120]
[408361185,1773491480950,-151.0,0.000495,120]
[408361186,1773491480959,-151.0,0.000495,120]
[408361187,1773491480969,-151.0,0.000495,120]
[408361188,1773491480979,-5579.55,0.00049507,120]
[408361189,1773491480988,-5000.0,0.000496,120]
[408361190,1773491480998,-5000.0,0.0004965,120]
[408361191,1773491481007,-2059.0,0.0004969,81]
[408361192,1773491481017,-5000.0,0.000497,120]
[408361193,1773491481026,-5137.02293631,0.000497,120]
[408361194,1773491481035,-96942.72,0.000497,9]
[408361195,1773491481044,-10000.0,0.0004973,120]
[408361196,1773491481053,-540.0,0.00049731,120]
[408361197,1773491481063,-1078.085,0.00049744,2]
[408361198,1773491481072,-291.792,0.00049744,2]
[408361199,1773491481082,-1043.0,0.00049744,2]
[408361200,1773491481092,-3479.28092454,0.00049752,60]
[408361201,1773491481101,-3479.28092454,0.00049752,60]
[408361202,1773491481110,-3479.28092454,0.00049752,60]
[408361203,1773491481120,-3479.28092454,0.00049752,60]
[408361204,1773491481129,-3479.28092454,0.00049752,60]
[408361205,1773491481139,-3479.28092454,0.00049752,60]
[408361206,1773491481149,-3479.28092453,0.00049752,60]
[408361207,1773491481159,-485.97,0.00049779,120]
[408361208,1773491481168,-1260.86004925,0.000498,120]
[408361209,1773491481178,-470.7783138,0.000498,30]
[408361210,1773491481187,-499852.578969,0.000498,120]
[408361211,1773491481196,-339.70953476,0.000498,30]
[408361212,1773491481207,-20000.0,0.000498,120]
[408361213,1773491481217,-200.0,0.00049808,7]
[408361214,1773491481226,-200.0,0.00049808,7]
[408361215,1773491481236,-2018.00833697,0.00049833,120]
[408361216,1773491481245,-1282777.57347395,0.0004986,120]
[408361217,1773491481255,-500.0,0.00049863,60]
[408361218,1773491481265,-500.0,0.00049863,60]
[408361219,1773491481274,-500.0,0.00049863,60]
[408361220,1773491481283,-5579.55,0.00049871,120]
[408361221,1773491481293,-1269.10010553,0.00049875,60]
[408361222,1773491481302,-5000.0,0.00049889,120]
[408361223,1773491481315,-984.56936028,0.0004989,120]
[408361224,1773491481325,-330967.57682795,0.000499,120]
[408361225,1773491481503,-151.0,0.00041,120]
[408361226,1773491481513,-798.65,0.000499,120]
[408361227,1773491481523,-359.69059197,0.000499,120]
[408361228,1773491481537,-1826.56410682,0.000499,120]
[408361231,1773491546506,807.05125089,0.00015,30]
[408361232,1773491547051,500.0,0.00015,30]
[408361233,1773491547529,500.0,0.00015,30]
[408361234,1773491548018,500.0,0.000114,2]
[408361235,1773491548519,604.89012783,0.000114,2]
[408361236,1773491554132,503.30544762,0.00015,30]
[408361245,1773491835488,500.0,0.00015,30]
[408361246,1773491835525,500.0,0.00015,30]
[408361247,1773491836291,500.0,0.000114,2]
[408361248,1773491837785,500.0,0.00015,30]
[408361249,1773491841694,500.0,0.00015,30]
[408361250,1773491844716,814.0,0.00015,30]
[408361251,1773491847351,500.0,0.00015,30]
[408361252,1773491848833,500.0,0.00015,30]
[408361253,1773491849314,19.76224761,0.00015,30]
[408361254,1773491849336,480.23775239,0.00015,30]
[408361255,1773491849808,126.26224761,0.000114,2]
[408361256,1773491849836,373.73775239,0.000114,2]
[408361284,1773492631757,-1171.7176,0.000164,2]
[408361285,1773492631768,-506.0,0.00017,2]
[408361286,1773492631778,-83.77720591,0.00018356,2]
[408361287,1773492631790,-735.90085166,0.00018356,2]
[408361288,1773492631868,-180.32194243,0.00018356,2]
[408361289,1773492631878,-1000.0,0.00018597,2]
[408361290,1773492631887,-66.15805757,0.0001863,2]
[408361291,1773492631899,-933.84194243,0.0001863,2]
[408361292,1773492631909,-51.57655757,0.00018696,2]
[408361293,1773492631921,-114.96630324,0.00018696,2]
[408361294,1773492631931,-1000.0,0.00018904,2]
[408361295,1773492631941,-248.0,0.00019129,2]
[408361296,1773492631950,-1200.0,0.00019177,2]
[408361297,1773492631960,-1000.0,0.00019178,2]
[408361298,1773492631969,-248.0,0.00019287,2]
[408361299,1773492631979,-300.0,0.00019338,2]
[408361300,1773492631988,-300.0,0.00019338,2]
[408361301,1773492631998,-3717.54,0.00019339,2]
[408361302,1773492632008,-4419.09,0.00019339,2]
[408361303,1773492632017,-730.82,0.00019339,2]
[408361304,1773492632026,-3295.51,0.00019339,2]
[408361305,1773492632037,-8886.6,0.00019339,2]
[408361308,1773492632046,-24784.24,0.00019339,2]
[408361310,1773492632056,-9352.5,0.00019339,2]
[408361312,1773492632066,-1567.43,0.00019339,2]
[408361313,1773492632076,-6442.23046117,0.00019339,2]
[408361314,1773492632087,-1231.63953883,0.00019339,2]
[408361315,1773492632097,-150.99,0.00019339,2]
[408361316,1773492632107,-3270.76,0.00019339,2]
[408361317,1773492632116,-500.0,0.00019373,2]
[408361318,1773492632126,-248.0,0.0001941,2]
[408361319,1773492632136,-1000.0,0.00019452,2]
[408361320,1773492632146,-248.0,0.00019586,2]
[408361321,1773492632155,-248.0,0.00019594,2]
[408361322,1773492632164,-248.0,0.00019599,2]
[408361323,1773492632174,-248.0,0.00019695,2]
[408361324,1773492632184,-1000.0,0.00019726,2]
[408361325,1773492632194,-248.0,0.00019753,2]
[408361326,1773492632203,-151.0,0.00019788,2]
[408361327,1773492632213,-2000.0,0.000198,2]
[408361328,1773492632223,-248.0,0.0001985,2]
[408361329,1773492632232,-706.21,0.00019878,2]
[408361330,1773492632241,-2000.0,0.000199,2]
[408361331,1773492632250,-500.0,0.00019921,2]
[408361332,1773492632260,-248.0,0.00019974,2]
[408361333,1773492632270,-176.9,0.00019981,2]
[408361334,1773492632279,-248.0,0.00019993,2]
[408361335,1773492632288,-248.0,0.00019996,2]
[408361336,1773492632298,-312.67,0.0002,2]
[408361337,1773492632308,-167.69,0.0002,2]
[408361338,1773492632318,-203.227023,0.0002,2]
[408361339,1773492632327,-1000.0,0.0002,2]
[408361340,1773492632337,-209.66,0.00020016,2]
[408361341,1773492632347,-248.0,0.00020048,2]
[408361342,1773492632356,-248.0,0.000201,2]
[408361343,1773492632370,-706.21,0.00020152,2]
[408361344,1773492632379,-160.0,0.00020239,2]
[408361345,1773492632388,-168.0,0.00020248,2]
[408361346,1773492632398,-500.0,0.00020274,2]
[408361347,1773492632408,-939.4335226,0.00020274,2]
[408361348,1773492632419,-60.5664774,0.00020274,2]
[408361349,1773492632429,-506.0,0.00020316,5]
[408361350,1773492632438,-248.0,0.00020409,2]
[408361351,1773492632447,-706.21,0.00020426,2]
[408361352,1773492632458,-248.0,0.00020476,2]
[408361353,1773492632468,-248.0,0.00020482,2]
[408361354,1773492632478,-248.0,0.00020488,2]
[408361355,1773492632487,-1000.0,0.00020548,2]
[408361356,1773492632497,-187.6,0.000206,7]
[408361357,1773492632507,-248.0,0.00020607,2]
[408361358,1773492632516,-248.0,0.00020664,2]
[408361359,1773492632526,-706.21,0.000207,2]
[408361360,1773492632535,-628.82968769,0.00020822,2]
[408361361,1773492632548,-371.17031231,0.00020822,2]
[408361362,1773492632558,-608.78,0.00020872,2]
[408361363,1773492632567,-248.0,0.00020887,2]
[408361364,1773492632577,-248.0,0.00020929,2]
[408361365,1773492632590,-912.4829,0.00020996,2]
[408361366,1773492632600,-598.0,0.00021001,2]
[408361367,1773492632610,-248.0,0.00021027,2]
[408361368,1773492632620,-220.56678783,0.00021064,2]
[408361371,1773492637952,-451.15504761,0.00019239,2]
[408361372,1773492637963,-5018.84606289,0.00019239,2]
[408361373,1773492638009,-58827.4427895,0.00019239,2]
[408361374,1773492638020,-1045.7179241,0.000199,2]
[408361375,1773492638029,-27.43321217,0.00021064,2]
[408361376,1773492638039,-420.0,0.00021071,2]
[408361377,1773492638047,-1000.0,0.00021096,2]
[408361378,1773492638057,-608.78,0.00021146,2]
[408361379,1773492638067,-150.0,0.00021288,2]
[408361380,1773492638076,-1000.0,0.0002137,2]
[408361381,1773492638086,-608.78,0.0002142,2]
[408361382,1773492638095,-1059.02,0.00021595,2]
[408361383,1773492638107,-1000.0,0.00021644,2]
[408361384,1773492638116,-290.79,0.00021694,2]
[408361385,1773492638126,-1000.0,0.00021918,2]
[408361386,1773492638135,-224.81,0.00021933,2]
[408361387,1773492638145,-1000.0,0.00022192,2]
[408361388,1773492638155,-167.69,0.000224,60]
[408361389,1773492638165,-1000.0,0.00022466,2]
[408361390,1773492638175,-367.17069622,0.00022682,2]
[408361392,1773492638184,-1343.0,0.00022718,2]
[408361394,1773492638196,-621.172,0.00022718,2]
[408361395,1773492638206,-1043.0,0.00022718,2]
[408361396,1773492638215,-1260.0,0.00022718,2]
[408361397,1773492638224,-923.0,0.00022718,2]
[408361398,1773492638234,-1214.0,0.00022718,2]
[408361399,1773492638243,-6000.0,0.00022718,2]
[408361400,1773492638252,-414.0,0.00022718,2]
[408361401,1773492638262,-1000.0,0.0002274,2]
[408361402,1773492638271,-989.00733632,0.000228,2]
[408361403,1773492638281,-989.00733631,0.000228,2]
[408361405,1773492638290,-989.00733631,0.000228,2]
[408361407,1773492638300,-989.00733631,0.000228,2]
[408361408,1773492638310,-587.0,0.0002296,2]
[408361409,1773492638319,-1000.0,0.00023014,2]
[408361410,1773492638329,-756.44,0.00023207,2]
[408361411,1773492638339,-1000.0,0.00023288,2]
[408361412,1773492638348,-171.24237335,0.00023384,2]
[408361413,1773492638358,-1000.0,0.00023562,2]
[408361414,1773492638367,-506.0,0.00023632,8]
[408361415,1773492638377,-154.74,0.000238,14]
[408361416,1773492638386,-1000.0,0.00023836,2]
[408361417,1773492638397,-422.69,0.0002391,2]
[408361418,1773492638407,-422.69,0.0002391,2]
[408361419,1773492638416,-424.36,0.0002391,2]
[408361420,1773492638425,-1999.0,0.0002411,2]
[408361421,1773492638435,-780.12,0.00024155,2]
[408361422,1773492638445,-21138.13750862,0.00024403,2]
[408361423,1773492638454,-150.0,0.00024658,2]
[408361424,1773492638463,-780.12,0.00024759,2]
[408361425,1773492638641,-190.30638221,0.00025014,2]
[408361426,1773492638653,-823.0,0.00025018,2]
[408361427,1773492638665,-2049.75226407,0.00025113,2]
[408361428,1773492638676,-780.12,0.00025363,2]
[408361429,1773492638686,-1343.0,0.00025718,2]
[408361430,1773492638695,-620.0,0.00025718,2]
[408361431,1773492638706,-1043.0,0.00025718,2]
[408361432,1773492638716,-1260.0,0.00025718,2]
[408361433,1773492638727,-524.092,0.00025718,2]
[408361434,1773492638737,-1214.0,0.00025718,2]
[408361435,1773492638747,-6000.0,0.00025718,2]
[408361436,1773492638756,-414.0,0.00025718,2]
[408361437,1773492638766,-150.0,0.0002589,2]
[408361438,1773492638775,-1547.16,0.0002589,2]
[408361439,1773492638786,-780.12,0.00025967,2]
[408361440,1773492638795,-780.12,0.00026571,2]
[408361441,1773492638804,-506.0,0.00026947,11]
[408361442,1773492638814,-150.0,0.00027185,2]
[408361443,1773492638824,-681.0,0.0002726,2]
[408361444,1773492638834,-1209.22573917,0.00027297,2]
[408361445,1773492638850,-674.33676083,0.00027297,2]
[408361446,1773492638860,-300.0,0.00027397,2]
[408361447,1773492638869,-1407.27216267,0.00027397,10]
[408361448,1773492638880,-1364.88945289,0.00027397,10]
[408361449,1773492638892,-1554.53461667,0.00027397,10]
[408361450,1773492640069,-2463.0,0.00022718,2]
[408361451,1773492640078,-2463.0,0.00025718,2]
[408361452,1773492640088,-6214.9429633,0.00027397,10]
[408361453,1773492640183,-1435.87614288,0.00027397,10]
[408361454,1773492640195,-766.65610045,0.00027397,10]
[408361455,1773492640206,-590.72355662,0.00027397,10]
[408361456,1773492640563,-398.23705892,0.00027397,10]
[408361463,1773492645597,-490.26032658,0.00027397,5]
[408361466,1773492645714,-9.73967342,0.00027397,5]
[408361467,1773492645723,-225.94958503,0.00027882,2]
[408361468,1773492645734,-160.0,0.00028,7]
[408361469,1773492645743,-160.0,0.00028,7]
[408361470,1773492645752,-150.0,0.00028544,2]
[408361471,1773492645762,-500.0,0.00028717,120]
[408361472,1773492645773,-500.0,0.00028717,30]
[408361473,1773492645783,-1343.0,0.00028718,2]
[408361474,1773492645792,-620.0,0.00028718,2]
[408361475,1773492645802,-1043.0,0.00028718,2]
[408361476,1773492645811,-1260.0,0.00028718,2]
[408361477,1773492645822,-1214.0,0.00028718,2]
[408361478,1773492645831,-6000.0,0.00028718,2]
[408361479,1773492645840,-414.0,0.00028718,2]
[408361480,1773492645849,-2463.0,0.00028718,2]
[408361481,1773492645860,-1038.21381247,0.00028767,5]
[408361482,1773492645870,-160.67285275,0.00028867,5]
[408361483,1773492645879,-1873.0,0.00029414,5]
[408361484,1773492645888,-1493.0,0.00029414,5]
[408361485,1773492645898,-500.0,0.0002995,5]
[408361486,1773492645907,-150.0,0.00029971,2]
[408361487,1773492645917,-169.4561383,0.0003,7]
[408361488,1773492645929,-169.4561383,0.0003,7]
[408361489,1773492645939,-169.45613829,0.0003,7]
[408361491,1773492645948,-169.45613829,0.0003,7]
[408361492,1773492645957,-197.79386672,0.00030067,5]
[408361493,1773492645966,-506.0,0.00030263,14]
[408361494,1773492645976,-500.0,0.00030498,5]
[408361495,1773492645985,-172.454057,0.00030553,7]
[408361496,1773492645994,-514.68332099,0.00030749,120]
[408361497,1773492646004,-500.0,0.00030749,10]
[408361498,1773492646013,-500.0,0.00030749,120]
[408361499,1773492646022,-475.51,0.0003075,7]
[408361500,1773492646031,-400.0,0.0003097,2]
[408361501,1773492646040,-176.9,0.00031037,2]
[408361502,1773492646049,-209.66,0.00031052,2]
[408361503,1773492646058,-161.0,0.00031411,3]
[408361504,1773492646068,-150.0,0.0003147,2]
[408361505,1773492646077,-464.22,0.000317,14]
[408361506,1773492646087,-620.0,0.00031718,2]
[408361507,1773492646098,-1043.0,0.00031718,2]
[408361508,1773492646109,-1260.0,0.00031718,2]
[408361509,1773492646118,-1207.0,0.00031718,2]
[408361510,1773492646128,-6000.0,0.00031718,2]
[408361511,1773492646139,-414.0,0.00031718,2]
[408361512,1773492646149,-2463.0,0.00031718,2]
[408361513,1773492646158,-160.0,0.000328,2]
[408361515,1773492646168,-400.0,0.0003287,2]
[408361517,1773492646178,-150.0,0.00033043,2]
[408361518,1773492646187,-788.24029929,0.0003322,2]
[408361519,1773492646196,-1168.22,0.00033569,10]
[408361520,1773492646205,-506.0,0.00033579,17]
[408361522,1773492646214,-848.0,0.00033734,11]
[408361524,1773492646223,-589.0,0.00033755,30]
[408361525,1773492646233,-274.0,0.00033755,30]
[408361527,1773492646242,-620.0,0.00034718,2]
[408361528,1773492646251,-1043.0,0.00034718,2]
[408361529,1773492646261,-1260.0,0.00034718,2]
[408361530,1773492646271,-3652.043,0.00034718,2]
[408361531,1773492646280,-414.0,0.00034718,2]
[408361532,1773492646291,-2463.0,0.00034718,2]
[408361533,1773492646302,-1500.0,0.00034795,2]
[408361534,1773492646312,-2500.0,0.00035,120]
[408361535,1773492646321,-2000.0,0.00035,120]
[408361536,1773492646331,-4502.0,0.00035,120]
[408361537,1773492646340,-200.0,0.00035,3]
[408361538,1773492646351,-2500.0,0.00035,120]
[408361539,1773492646359,-2500.0,0.00035,120]
[408361540,1773492646369,-2049.75226407,0.00035435,2]
[408361541,1773492646379,-1255.61,0.00036088,10]
[408361542,1773492646388,-1706.36,0.00036113,10]
[408361543,1773492646398,-242.93,0.00036196,10]
[408361544,1773492646408,-1255.61,0.00036203,10]
[408361545,1773492646419,-225.84,0.00036787,13]
[408361546,1773492646429,-225.84,0.00036787,13]
[408361547,1773492646440,-506.0,0.00036895,20]
[408361548,1773492646450,-1092.06,0.00036992,10]
[408361549,1773492646460,-225.84,0.00037335,13]
[408361550,1773492646471,-225.84,0.00037335,13]
[408361551,1773492646482,-1000.104444,0.00037376,2]
[408361552,1773492646493,-620.0,0.00037718,2]
[408361553,1773492646503,-1260.0,0.00037718,2]
[408361554,1773492646513,-414.0,0.00037718,2]
[408361555,1773492646523,-2463.0,0.00037718,2]
[408361556,1773492646533,-421.03961596,0.00037788,7]
[408361557,1773492646543,-225.84,0.00037883,13]
[408361558,1773492646553,-225.84,0.00037883,13]
[408361559,1773492646563,-160.0,0.00038,120]
[408361560,1773492646574,-605.15,0.00038034,30]
[408361561,1773492646583,-280.0,0.0003838,5]
[408361562,1773492646593,-209.66,0.00038472,2]
[408361563,1773492646602,-176.9,0.00038513,2]
[408361564,1773492646611,-1455.60776979,0.00038566,2]
[408361565,1773492646620,-152.0,0.00039046,3]
[408361566,1773492646629,-3008.048,0.00039059,53]
[408361567,1773492646638,-174.164,0.00039059,53]
[408361568,1773492646647,-225.84,0.00039253,13]
[408361569,1773492646656,-225.84,0.00039253,13]
[408361570,1773492646670,-2000.0,0.0004,120]
[408361571,1773492646679,-151.23,0.0004,2]
[408361572,1773492646692,-151.23,0.0004,2]
[408361573,1773492646703,-151.23,0.0004,2]
[408361574,1773492646712,-386.85,0.000402,30]
[408361575,1773492646721,-506.0,0.00040211,23]
[408361576,1773492646730,-620.0,0.00040718,2]
[408361577,1773492646742,-1260.0,0.00040718,2]
[408361578,1773492646752,-414.0,0.00040718,2]
[408361579,1773492646762,-2463.0,0.00040718,2]
[408361580,1773492646771,-4843.0,0.0004095,60]
[408361581,1773492646781,-300.0,0.00041096,10]
[408361582,1773492646790,-150.0,0.00041096,10]
[408361583,1773492646810,-1000.0,0.00041096,10]
[408361584,1773492646830,-199.80525439,0.00041096,2]
[408361585,1773492646839,-190.0,0.00041096,2]
[408361586,1773492646849,-278.72257417,0.00041403,120]
[408361587,1773492646860,-5000.0,0.00041417,120]
[408361588,1773492646871,-737.11399896,0.00041589,7]
[408361589,1773492646881,-250.0,0.00041644,10]
[408361590,1773492646890,-600.0,0.00041918,10]
[408361591,1773492646902,-391.0,0.00042087,5]
[408361592,1773492646912,-350.0,0.00042192,10]
[408361593,1773492646922,-2053.35217217,0.00042192,10]
[408361594,1773492646933,-4843.0,0.000423,60]
[408361595,1773492646943,-250.0,0.00042355,7]
[408361596,1773492646952,-250.0,0.00042355,7]
[408361597,1773492646964,-250.0,0.00042355,7]
[408361598,1773492646974,-250.0,0.00042355,7]
[408361599,1773492646983,-266.0,0.00042355,7]
[408361600,1773492646994,-150.0,0.00042355,7]
[408361601,1773492647004,-150.0,0.00042355,7]
[408361602,1773492647014,-252.0,0.00042355,7]
[408361603,1773492647023,-150.0,0.00042355,7]
[408361604,1773492647033,-150.0,0.00042355,7]
[408361605,1773492647044,-150.0,0.00042355,7]
[408361606,1773492647054,-183.0,0.00042355,7]
[408361607,1773492647063,-276.0,0.00042355,7]
[408361608,1773492647072,-150.0,0.00042355,7]
[408361609,1773492647082,-166.0,0.00042355,7]
[408361610,1773492647092,-152.0,0.00042493,4]
[408361611,1773492647103,-453.86,0.00042546,120]
[408361612,1773492647113,-707.94,0.00042546,120]
[408361613,1773492647123,-442.46,0.00042546,30]
[408361614,1773492647133,-2000.0,0.000427,2]
[408361615,1773492647143,-900.0,0.0004274,10]
[408361616,1773492647152,-450.0,0.0004274,10]
[408361617,1773492647164,-347.1797973,0.00042853,2]
[408361618,1773492647175,-303.20588711,0.00042853,2]
[408361619,1773492647184,-300.0,0.00042853,2]
[408361620,1773492647193,-300.0,0.00042853,2]
[408361621,1773492647202,-1050.14169216,0.00042853,2]
[408361622,1773492647211,-307.09317041,0.00042853,2]
[408361623,1773492647220,-300.0,0.00042853,2]
[408361624,1773492647229,-857.47271976,0.00042853,2]
[408361625,1773492647238,-300.0,0.00042853,2]
[408361626,1773492647247,-300.0,0.00042853,2]
[408361627,1773492647256,-300.0,0.00042853,2]
[408361628,1773492647265,-300.0,0.00042853,2]
[408361629,1773492647275,-308.36419653,0.00042853,2]
[408361630,1773492647283,-300.0,0.00042853,2]
[408361631,1773492647294,-300.0,0.00042853,2]
[408361632,1773492647303,-300.0,0.00042853,2]